fUSD/lending_fUSD_20250420
["ID","MTS","AMOUNT","RATE_DAILY","PERIOD"]
[358434847,1745148840854,150.16772832,0.0003,31]
[358434848,1745148874026,170.84,0.0001953,2]
[358434849,1745148995905,200.0,0.00032,120]
[358434850,1745149010142,200.0,0.0003,120]
[358434851,1745149164891,-300.0,0.00019899,2]
[358434852,1745149164919,-8124.7082,0.000199,2]
[358434853,1745149164947,-1268.38189126,0.000199,2]
[358434854,1745149164972,-157.3877539,0.000199,2]
[358434855,1745149164998,-275.4974758,0.000199,2]
[358434856,1745149165027,-465.01336039,0.000199,2]
[358434857,1745149165054,-169.72532864,0.000199,2]
[358434858,1745149165080,-2739.28599001,0.000199,2]
[358434859,1745149208866,-315.92157144,0.000199,2]
[358434860,1745149208891,-183.66498386,0.000199,2]
[358434861,1745149208919,-638.63,0.00019927,2]
[358434862,1745149208945,-500.0,0.00019973,2]
[358434863,1745149208971,-500.0,0.00019973,2]
[358434864,1745149208996,-244.87,0.0001999,2]
[358434865,1745149209024,-244.87,0.0001999,2]
[358434866,1745149209051,-500.0,0.00019999,2]
[358434867,1745149209077,-674.0,0.0002,2]
[358434868,1745149209106,-50198.0434447,0.0002,2]
[358434869,1745149505936,270.4830867,0.00019,2]
[358434870,1745149505962,8510.7769133,0.00019,2]
[358434871,1745149507624,8781.26,0.00019,2]
[358434872,1745149543555,-177.05,0.00032877,30]
[358434873,1745149543579,-1930.0,0.00033,30]
[358434874,1745149543605,-200.0,0.00034,120]
[358434875,1745149543630,-200.0,0.00036,120]
[358434876,1745149543654,-506.607692,0.00036714,120]
[358434877,1745149543676,-505.320462,0.00036714,120]
[358434878,1745149543702,-1220.63192783,0.00037,120]
[358434879,1745149543726,-200.0,0.000375,32]
[358434880,1745149543750,-200.0,0.000375,32]
[358434881,1745149543775,-300.0,0.00038,120]
[358434882,1745149543801,-200.0,0.000385,35]
[358434883,1745149543825,-200.0,0.000385,35]
[358434884,1745149543850,-167.521696,0.0003897,60]
[358434885,1745149543877,-200.0,0.000395,39]
[358434886,1745149543901,-200.0,0.000395,39]
[358434887,1745149543931,-1000.0,0.0004,120]
[358434888,1745149543955,-3000.0,0.0004,120]
[358434889,1745149543979,-1992.35,0.0004,30]
[358434890,1745149544005,-362.0,0.0004,120]
[358434891,1745149544030,-500.0,0.0004,120]
[358434892,1745149544060,-200.0,0.000405,43]
[358434893,1745149544085,-200.0,0.000405,43]
[358434894,1745149544111,-512.75659386,0.00041,120]
[358434895,1745149544136,-150.5,0.0004109,120]
[358434896,1745149544162,-150.0,0.00041095,120]
[358434897,1745149544188,-39647.0,0.000412,30]
[358434898,1745149544213,-2000.0,0.00041214,120]
[358434899,1745149544237,-206.537914,0.00041214,120]
[358434900,1745149544263,-200.0,0.000415,47]
[358434901,1745149544288,-200.0,0.000415,47]
[358434902,1745149544312,-250.0,0.00042,45]
[358434903,1745149544337,-500.0,0.00042,120]
[358434904,1745149544363,-300.0,0.00042,120]
[358434905,1745149544387,-150.0,0.00042465,120]
[358434906,1745149544412,-200.0,0.000425,51]
[358434907,1745149544435,-355.37,0.000425,51]
[358434908,1745149544458,-250.0,0.000425,45]
[358434909,1745149544483,-2021.426556,0.00042714,120]
[358434910,1745149544507,-250.0,0.0004295,45]
[358434911,1745149544530,-811.0,0.00043,30]
[358434912,1745149544554,-170.0,0.00043151,90]
[358434913,1745149544578,-340.299999,0.000435,55]
[358434914,1745149544602,-1000.0,0.000438,30]
[358434915,1745149544627,-1879.200664,0.00043835,30]
[358434916,1745149544792,-1879.200664,0.00043835,30]
[358434917,1745149544819,-1879.200664,0.00043835,30]
[358434918,1745149544843,-158.018349,0.00043835,30]
[358434919,1745149544869,-158.018349,0.00043835,30]
[358434920,1745149544892,-158.018349,0.00043835,30]
[358434921,1745149544918,-1368.147723,0.00043835,30]
[358434922,1745149544945,-1368.147723,0.00043835,30]
[358434923,1745149544970,-1368.147723,0.00043835,30]
[358434924,1745149544994,-1550.71158,0.00043835,30]
[358434925,1745149545019,-1550.71158,0.00043835,30]
[358434926,1745149545045,-1550.71158,0.00043835,30]
[358434927,1745149545069,-500.0,0.00043835,30]
[358434928,1745149545091,-500.0,0.00043835,30]
[358434929,1745149545117,-500.0,0.00043835,30]
[358434930,1745149545140,-500.0,0.00043835,30]
[358434931,1745149545162,-500.0,0.00043835,30]
[358434932,1745149545186,-500.0,0.00043835,30]
[358434933,1745149545210,-500.0,0.00043835,30]
[358434934,1745149545233,-500.0,0.00043835,30]
[358434935,1745149545256,-500.0,0.00043835,30]
[358434936,1745149545280,-500.0,0.00043835,30]
[358434937,1745149545304,-500.0,0.00043835,30]
[358434938,1745149545327,-500.0,0.00043835,30]
[358434939,1745149545351,-486.01590869,0.00043835,30]
[358434940,1745149545376,-509.74060325,0.00043835,30]
[358434941,1745149545400,-500.0,0.00043835,30]
[358434942,1745149545424,-500.0,0.00043835,30]
[358434943,1745149545447,-429.33791814,0.00043835,30]
[358434944,1745149545472,-500.0,0.00043835,30]
[358434945,1745149545496,-500.0,0.00043835,30]
[358434946,1745149545521,-500.0,0.00043835,30]
[358434947,1745149545546,-213.03697823,0.00043835,30]
[358434948,1745149545570,-513.01537716,0.00043835,30]
[358434949,1745149545593,-500.0,0.00043835,30]
[358434950,1745149545616,-512.13101564,0.00043835,30]
[358434951,1745149545640,-513.70926837,0.00043835,30]
[358434952,1745149545663,-577.13060479,0.00043835,30]
[358434953,1745149545687,-528.10883962,0.00043835,30]
[358434954,1745149545710,-500.0,0.00043835,30]
[358434955,1745149545734,-500.0,0.00043835,30]
[358434956,1745149545758,-550.61732941,0.00043835,30]
[358434957,1745149545781,-500.0,0.00043835,30]
[358434958,1745149545806,-227.01649064,0.00043835,30]
[358434959,1745149545829,-541.36073956,0.00043835,30]
[358434960,1745149545853,-500.0,0.00043835,30]
[358434961,1745149545878,-529.5748735,0.00043835,30]
[358434962,1745149545902,-500.0,0.00043835,30]
[358434963,1745149545926,-537.21695189,0.00043835,30]
[358434964,1745149545950,-500.0,0.00043835,30]
[358434965,1745149545977,-500.0,0.00043835,30]
[358434966,1745149546002,-498.13932024,0.00043835,30]
[358434967,1745149546025,-500.0,0.00043835,30]
[358434968,1745149546050,-515.11189762,0.00043835,30]
[358434969,1745149546075,-522.11310577,0.00043835,30]
[358434970,1745149546100,-500.0,0.00043835,30]
[358434971,1745149546237,-500.0,0.00043835,30]
[358434972,1745149546262,-525.10496929,0.00043835,30]
[358434973,1745149546287,-500.0,0.00043835,30]
[358434974,1745149546312,-574.81985021,0.00043835,30]
[358434975,1745149546335,-526.85250445,0.00043835,30]
[358434976,1745149546360,-557.47675522,0.00043835,30]
[358434977,1745149546384,-500.0,0.00043835,30]
[358434978,1745149546410,-538.41638056,0.00043835,30]
[358434979,1745149546434,-545.10746327,0.00043835,30]
[358434980,1745149546458,-500.0,0.00043835,30]
[358434981,1745149546481,-500.0,0.00043835,30]
[358434982,1745149546504,-500.0,0.00043835,30]
[358434983,1745149546529,-500.0,0.00043835,30]
[358434984,1745149546554,-500.0,0.00043835,30]
[358434985,1745149546579,-500.0,0.00043835,30]
[358434986,1745149546603,-500.0,0.00043835,30]
[358434987,1745149546626,-500.0,0.00043835,30]
[358434988,1745149546650,-500.0,0.00043835,30]
[358434989,1745149546673,-500.0,0.00043835,30]
[358434990,1745149546697,-500.0,0.00043835,30]
[358434991,1745149546722,-500.0,0.00043835,30]
[358434992,1745149546747,-646.94237579,0.00043835,30]
[358434993,1745149546773,-500.0,0.00043835,30]
[358434994,1745149546799,-533.40415557,0.00043835,30]
[358434995,1745149546823,-500.0,0.00043835,30]
[358434996,1745149546848,-500.0,0.00043835,30]
[358434997,1745149546874,-546.56969629,0.00043835,30]
[358434998,1745149546898,-500.0,0.00043835,30]
[358434999,1745149546924,-563.31855359,0.00043835,30]
[358435000,1745149546948,-500.0,0.00043835,30]
[358435001,1745149546972,-500.0,0.00043835,30]
[358435002,1745149546996,-500.0,0.00043835,30]
[358435003,1745149547021,-500.0,0.00043835,30]
[358435004,1745149547045,-500.0,0.00043835,30]
[358435005,1745149547068,-500.0,0.00043835,30]
[358435006,1745149547092,-500.0,0.00043835,30]
[358435007,1745149547120,-500.0,0.00043835,30]
[358435008,1745149547144,-500.0,0.00043835,30]
[358435009,1745149547170,-500.0,0.00043835,30]
[358435010,1745149547194,-547.62173683,0.00043835,30]
[358435011,1745149547219,-500.0,0.00043835,30]
[358435012,1745149547242,-500.0,0.00043835,30]
[358435013,1745149547266,-500.0,0.00043835,30]
[358435014,1745149547289,-500.0,0.00043835,30]
[358435015,1745149547313,-500.0,0.00043835,30]
[358435016,1745149547337,-504.69297346,0.00043835,30]
[358435017,1745149547361,-500.0,0.00043835,30]
[358435018,1745149547384,-500.0,0.00043835,30]
[358435019,1745149547408,-500.0,0.00043835,30]
[358435020,1745149547431,-624.7955499,0.00043835,30]
[358435021,1745149547455,-500.0,0.00043835,30]
[358435022,1745149547479,-500.0,0.00043835,30]
[358435023,1745149547582,-500.0,0.00043835,30]
[358435024,1745149547620,-536.24293143,0.00043835,30]
[358435025,1745149547644,-500.0,0.00043835,30]
[358435026,1745149547668,-500.0,0.00043835,30]
[358435027,1745149547692,-500.0,0.00043835,30]
[358435028,1745149547715,-500.0,0.00043835,30]
[358435029,1745149547740,-500.0,0.00043835,30]
[358435030,1745149547764,-500.0,0.00043835,30]
[358435031,1745149547788,-321.40571966,0.00043835,30]
[358435032,1745149547812,-500.0,0.00043835,30]
[358435033,1745149547835,-500.0,0.00043835,30]
[358435034,1745149547858,-500.0,0.00043835,30]
[358435035,1745149547881,-500.0,0.00043835,30]
[358435036,1745149547904,-500.0,0.00043835,30]
[358435037,1745149547930,-500.0,0.00043835,30]
[358435038,1745149547954,-343.66482207,0.00043835,30]
[358435039,1745149547977,-500.0,0.00043835,30]
[358435040,1745149548001,-536.19958709,0.00043835,30]
[358435041,1745149548025,-500.0,0.00043835,30]
[358435042,1745149548049,-500.0,0.00043835,30]
[358435043,1745149548072,-500.0,0.00043835,30]
[358435044,1745149548096,-500.0,0.00043835,30]
[358435045,1745149548123,-563.19758199,0.00043835,30]
[358435046,1745149548146,-500.0,0.00043835,30]
[358435047,1745149548170,-549.13198959,0.00043835,30]
[358435048,1745149548194,-500.0,0.00043835,30]
[358435049,1745149548218,-505.47664339,0.00043835,30]
[358435050,1745149548242,-500.0,0.00043835,30]
[358435051,1745149548267,-166.23479467,0.00043835,30]
[358435052,1745149548292,-500.0,0.00043835,30]
[358435053,1745149548317,-500.0,0.00043835,30]
[358435054,1745149548341,-500.0,0.00043835,30]
[358435055,1745149548366,-500.0,0.00043835,30]
[358435056,1745149548390,-500.0,0.00043835,30]
[358435057,1745149548414,-500.0,0.00043835,30]
[358435058,1745149548438,-500.0,0.00043835,30]
[358435059,1745149548464,-500.0,0.00043835,30]
[358435060,1745149548489,-522.5576863,0.00043835,30]
[358435061,1745149548514,-500.0,0.00043835,30]
[358435062,1745149548538,-452.15921043,0.00043835,30]
[358435063,1745149548563,-546.16285336,0.00043835,30]
[358435064,1745149548587,-520.33834246,0.00043835,30]
[358435065,1745149548612,-183.73785392,0.00043835,30]
[358435066,1745149548636,-417.91503815,0.00043835,30]
[358435067,1745149548661,-500.0,0.00043835,30]
[358435068,1745149548687,-500.0,0.00043835,30]
[358435069,1745149548715,-524.77282734,0.00043835,30]
[358435070,1745149548740,-500.0,0.00043835,30]
[358435071,1745149548765,-500.0,0.00043835,30]
[358435072,1745149548791,-500.0,0.00043835,30]
[358435073,1745149548815,-319.62524223,0.00043835,30]
[358435074,1745149548839,-522.31580558,0.00043835,30]
[358435075,1745149548963,-515.16532087,0.00043835,30]
[358435076,1745149548988,-275.206149,0.00043835,30]
[358435077,1745149549013,-514.71047175,0.00043835,30]
[358435078,1745149549038,-500.0,0.00043835,30]
[358435079,1745149549062,-500.0,0.00043835,30]
[358435080,1745149549088,-500.0,0.00043835,30]
[358435081,1745149549116,-500.0,0.00043835,30]
[358435082,1745149549141,-500.0,0.00043835,30]
[358435083,1745149549165,-500.0,0.00043835,30]
[358435084,1745149549191,-500.0,0.00043835,30]
[358435085,1745149549217,-500.0,0.00043835,30]
[358435086,1745149549242,-500.0,0.00043835,30]
[358435087,1745149549266,-500.0,0.00043835,30]
[358435088,1745149549292,-559.93183573,0.00043835,30]
[358435089,1745149549318,-428.44680028,0.00043835,30]
[358435090,1745149549342,-500.0,0.00043835,30]
[358435091,1745149549368,-500.0,0.00043835,30]
[358435092,1745149549394,-500.0,0.00043835,30]
[358435093,1745149549418,-402.38891429,0.00043835,30]
[358435094,1745149549443,-500.0,0.00043835,30]
[358435095,1745149549467,-500.0,0.00043835,30]
[358435096,1745149549493,-500.0,0.00043835,30]
[358435097,1745149549518,-500.0,0.00043835,30]
[358435098,1745149549542,-500.0,0.00043835,30]
[358435099,1745149549567,-500.0,0.00043835,30]
[358435100,1745149549591,-500.0,0.00043835,30]
[358435101,1745149549615,-245.14277563,0.00043835,30]
[358435102,1745149549640,-250.0,0.00043835,30]
[358435103,1745149549666,-250.0,0.00043835,30]
[358435104,1745149549691,-250.0,0.00043835,30]
[358435105,1745149549716,-289.99458853,0.00043835,30]
[358435106,1745149549740,-577.8157989,0.00043835,30]
[358435107,1745149549766,-500.0,0.00043835,30]
[358435108,1745149549791,-500.0,0.00043835,30]
[358435109,1745149549814,-520.69889516,0.00043835,30]
[358435110,1745149549838,-500.0,0.00043835,30]
[358435111,1745149549863,-500.0,0.00043835,30]
[358435112,1745149549886,-507.56733627,0.00043835,30]
[358435113,1745149549910,-500.0,0.00043835,30]
[358435114,1745149549934,-525.73902853,0.00043835,30]
[358435115,1745149549959,-500.0,0.00043835,30]
[358435116,1745149549982,-500.0,0.00043835,30]
[358435117,1745149550007,-515.09717733,0.00043835,30]
[358435118,1745149550033,-533.99498436,0.00043835,30]
[358435119,1745149550059,-500.0,0.00043835,30]
[358435120,1745149550084,-500.0,0.00043835,30]
[358435121,1745149550116,-500.0,0.00043835,30]
[358435122,1745149550145,-500.0,0.00043835,30]
[358435123,1745149550176,-500.0,0.00043835,30]
[358435124,1745149550308,-500.0,0.00043835,30]
[358435125,1745149550340,-500.0,0.00043835,30]
[358435126,1745149550379,-500.0,0.00043835,30]
[358435127,1745149550410,-500.0,0.00043835,30]
[358435128,1745149550440,-500.0,0.00043835,30]
[358435129,1745149550472,-500.0,0.00043835,30]
[358435130,1745149550503,-500.0,0.00043835,30]
[358435131,1745149550532,-500.0,0.00043835,30]
[358435132,1745149550561,-232.58892202,0.00043835,30]
[358435133,1745149550589,-500.0,0.00043835,30]
[358435134,1745149550621,-500.0,0.00043835,30]
[358435135,1745149550650,-500.0,0.00043835,30]
[358435136,1745149550680,-500.0,0.00043835,30]
[358435137,1745149550708,-500.0,0.00043835,30]
[358435138,1745149550735,-500.0,0.00043835,30]
[358435139,1745149550762,-500.0,0.00043835,30]
[358435140,1745149550791,-500.0,0.00043835,30]
[358435141,1745149550819,-500.0,0.00043835,30]
[358435142,1745149550845,-593.14457599,0.00043835,30]
[358435143,1745149550873,-556.12143745,0.00043835,30]
[358435144,1745149550898,-500.0,0.00043835,30]
[358435145,1745149550924,-500.0,0.00043835,30]
[358435146,1745149550951,-500.0,0.00043835,30]
[358435147,1745149550978,-500.0,0.00043835,30]
[358435148,1745149551013,-500.0,0.00043835,30]
[358435149,1745149551068,-500.0,0.00043835,30]
[358435150,1745149551123,-500.0,0.00043835,30]
[358435151,1745149551181,-500.0,0.00043835,30]
[358435152,1745149551232,-500.0,0.00043835,30]
[358435153,1745149551275,-500.0,0.00043835,30]
[358435154,1745149551317,-500.0,0.00043835,30]
[358435155,1745149551361,-500.0,0.00043835,30]
[358435156,1745149551409,-500.0,0.00043835,30]
[358435157,1745149551457,-500.0,0.00043835,30]
[358435158,1745149551501,-500.0,0.00043835,30]
[358435159,1745149551544,-515.83931348,0.00043835,30]
[358435160,1745149551587,-500.0,0.00043835,30]
[358435161,1745149551631,-500.0,0.00043835,30]
[358435162,1745149551674,-500.0,0.00043835,30]
[358435163,1745149551722,-500.0,0.00043835,30]
[358435164,1745149551770,-405.41274995,0.00043835,30]
[358435165,1745149551818,-500.0,0.00043835,30]
[358435166,1745149551866,-500.0,0.00043835,30]
[358435167,1745149551917,-500.0,0.00043835,30]
[358435168,1745149551967,-500.0,0.00043835,30]
[358435169,1745149552017,-500.0,0.00043835,30]
[358435170,1745149552063,-527.81349039,0.00043835,30]
[358435171,1745149552271,-500.0,0.00043835,30]
[358435172,1745149552315,-500.0,0.00043835,30]
[358435173,1745149552344,-500.0,0.00043835,30]
[358435174,1745149552377,-500.0,0.00043835,30]
[358435175,1745149552404,-540.78121914,0.00043835,30]
[358435176,1745149552432,-500.0,0.00043835,30]
[358435177,1745149552463,-619.89446995,0.00043835,30]
[358435178,1745149552493,-500.0,0.00043835,30]
[358435179,1745149552523,-541.82897736,0.00043835,30]
[358435180,1745149552553,-500.0,0.00043835,30]
[358435181,1745149552582,-500.0,0.00043835,30]
[358435182,1745149552617,-500.0,0.00043835,30]
[358435183,1745149552645,-500.0,0.00043835,30]
[358435184,1745149552674,-500.0,0.00043835,30]
[358435185,1745149552703,-500.0,0.00043835,30]
[358435186,1745149552731,-531.16283515,0.00043835,30]
[358435187,1745149552760,-533.68368063,0.00043835,30]
[358435188,1745149552788,-500.0,0.00043835,30]
[358435189,1745149552815,-500.0,0.00043835,30]
[358435190,1745149552840,-500.0,0.00043835,30]
[358435191,1745149552866,-293.75112702,0.00043835,30]
[358435192,1745149552891,-500.0,0.00043835,30]
[358435193,1745149552916,-500.0,0.00043835,30]
[358435194,1745149552940,-500.0,0.00043835,30]
[358435195,1745149552966,-500.0,0.00043835,30]
[358435196,1745149552991,-500.0,0.00043835,30]
[358435197,1745149553016,-500.0,0.00043835,30]
[358435198,1745149553040,-521.04508877,0.00043835,30]
[358435199,1745149553065,-500.0,0.00043835,30]
[358435200,1745149553089,-500.0,0.00043835,30]
[358435201,1745149553118,-500.0,0.00043835,30]
[358435202,1745149553144,-500.0,0.00043835,30]
[358435203,1745149553170,-586.00210286,0.00043835,30]
[358435204,1745149553195,-500.0,0.00043835,30]
[358435205,1745149553221,-519.93740162,0.00043835,30]
[358435206,1745149553247,-506.91144909,0.00043835,30]
[358435207,1745149553274,-500.0,0.00043835,30]
[358435208,1745149553299,-500.0,0.00043835,30]
[358435209,1745149553325,-500.0,0.00043835,30]
[358435210,1745149553353,-518.0389979,0.00043835,30]
[358435211,1745149553380,-500.0,0.00043835,30]
[358435212,1745149553407,-500.0,0.00043835,30]
[358435213,1745149553433,-576.10123851,0.00043835,30]
[358435214,1745149553460,-500.0,0.00043835,30]
[358435215,1745149553486,-500.0,0.00043835,30]
[358435216,1745149553512,-500.0,0.00043835,30]
[358435217,1745149553538,-500.0,0.00043835,30]
[358435218,1745149553565,-500.0,0.00043835,30]
[358435219,1745149553590,-500.0,0.00043835,30]
[358435220,1745149553617,-500.0,0.00043835,30]
[358435221,1745149553643,-500.0,0.00043835,30]
[358435222,1745149553667,-500.0,0.00043835,30]
[358435223,1745149553692,-500.0,0.00043835,30]
[358435224,1745149553716,-350.17272856,0.00043835,30]
[358435225,1745149553740,-500.0,0.00043835,30]
[358435226,1745149553764,-239.97287353,0.00043835,30]
[358435227,1745149553788,-515.55034157,0.00043835,30]
[358435228,1745149553816,-500.0,0.00043835,30]
[358435229,1745149553842,-500.0,0.00043835,30]
[358435230,1745149553868,-500.0,0.00043835,30]
[358435231,1745149553894,-500.0,0.00043835,30]
[358435232,1745149553920,-500.0,0.00043835,30]
[358435233,1745149554091,-500.0,0.00043835,30]
[358435234,1745149554121,-500.0,0.00043835,30]
[358435235,1745149554146,-500.0,0.00043835,30]
[358435236,1745149554173,-500.0,0.00043835,30]
[358435237,1745149554198,-500.0,0.00043835,30]
[358435238,1745149554224,-500.0,0.00043835,30]
[358435239,1745149554251,-302.05343182,0.00043835,30]
[358435240,1745149554278,-500.0,0.00043835,30]
[358435241,1745149554305,-500.0,0.00043835,30]
[358435242,1745149554332,-500.0,0.00043835,30]
[358435243,1745149554359,-500.0,0.00043835,30]
[358435244,1745149554385,-500.0,0.00043835,30]
[358435245,1745149554412,-500.0,0.00043835,30]
[358435246,1745149554438,-500.0,0.00043835,30]
[358435247,1745149554465,-500.0,0.00043835,30]
[358435248,1745149554505,-500.0,0.00043835,30]
[358435249,1745149554535,-500.0,0.00043835,30]
[358435250,1745149554563,-500.0,0.00043835,30]
[358435251,1745149554591,-500.0,0.00043835,30]
[358435252,1745149554619,-546.8001592,0.00043835,30]
[358435253,1745149554645,-500.0,0.00043835,30]
[358435254,1745149554673,-500.0,0.00043835,30]
[358435255,1745149554700,-500.0,0.00043835,30]
[358435256,1745149554727,-500.0,0.00043835,30]
[358435257,1745149554754,-500.0,0.00043835,30]
[358435258,1745149554780,-500.0,0.00043835,30]
[358435259,1745149554806,-500.0,0.00043835,30]
[358435260,1745149554832,-500.0,0.00043835,30]
[358435261,1745149554859,-500.0,0.00043835,30]
[358435262,1745149554884,-521.69732814,0.00043835,30]
[358435263,1745149554910,-500.0,0.00043835,30]
[358435264,1745149554936,-500.0,0.00043835,30]
[358435265,1745149554962,-500.0,0.00043835,30]
[358435266,1745149554990,-500.0,0.00043835,30]
[358435267,1745149555016,-333.60514643,0.00043835,30]
[358435268,1745149555042,-500.0,0.00043835,30]
[358435269,1745149555082,-500.0,0.00043835,30]
[358435270,1745149555112,-500.0,0.00043835,30]
[358435271,1745149555141,-500.0,0.00043835,30]
[358435272,1745149555176,-500.0,0.00043835,30]
[358435273,1745149555205,-500.0,0.00043835,30]
[358435274,1745149555233,-500.0,0.00043835,30]
[358435275,1745149555260,-500.0,0.00043835,30]
[358435276,1745149555291,-500.0,0.00043835,30]
[358435277,1745149555318,-500.0,0.00043835,30]
[358435278,1745149555348,-500.0,0.00043835,30]
[358435279,1745149555379,-528.06480768,0.00043835,30]
[358435280,1745149555406,-500.0,0.00043835,30]
[358435281,1745149555433,-254.48768826,0.00043835,30]
[358435282,1745149555459,-500.0,0.00043835,30]
[358435283,1745149555484,-514.77518033,0.00043835,30]
[358435284,1745149555510,-500.0,0.00043835,30]
[358435285,1745149555536,-500.0,0.00043835,30]
[358435286,1745149555560,-500.0,0.00043835,30]
[358435287,1745149555586,-551.66591652,0.00043835,30]
[358435288,1745149555612,-500.0,0.00043835,30]
[358435289,1745149555638,-500.0,0.00043835,30]
[358435290,1745149555663,-500.0,0.00043835,30]
[358435291,1745149555688,-521.56316954,0.00043835,30]
[358435292,1745149555714,-500.0,0.00043835,30]
[358435293,1745149555739,-500.0,0.00043835,30]
[358435294,1745149555765,-515.21405012,0.00043835,30]
[358435295,1745149555791,-500.0,0.00043835,30]
[358435296,1745149555817,-500.0,0.00043835,30]
[358435297,1745149555843,-500.0,0.00043835,30]
[358435298,1745149555875,-500.0,0.00043835,30]
[358435299,1745149555904,-500.0,0.00043835,30]
[358435300,1745149555933,-500.0,0.00043835,30]
[358435301,1745149555962,-525.59191384,0.00043835,30]
[358435302,1745149556168,-500.0,0.00043835,30]
[358435303,1745149556194,-304.08908957,0.00043835,30]
[358435304,1745149556219,-507.4803913,0.00043835,30]
[358435305,1745149556244,-530.59444708,0.00043835,30]
[358435306,1745149556270,-500.0,0.00043835,30]
[358435307,1745149556297,-500.0,0.00043835,30]
[358435308,1745149556324,-500.0,0.00043835,30]
[358435309,1745149556350,-500.0,0.00043835,30]
[358435310,1745149556377,-500.0,0.00043835,30]
[358435311,1745149556402,-500.0,0.00043835,30]
[358435312,1745149556428,-500.0,0.00043835,30]
[358435313,1745149556454,-500.0,0.00043835,30]
[358435314,1745149556480,-500.0,0.00043835,30]
[358435315,1745149556507,-168.3700426,0.00043835,30]
[358435316,1745149556533,-500.0,0.00043835,30]
[358435317,1745149556559,-543.37885119,0.00043835,30]
[358435318,1745149556585,-527.97534477,0.00043835,30]
[358435319,1745149556614,-500.0,0.00043835,30]
[358435320,1745149556638,-500.0,0.00043835,30]
[358435321,1745149556663,-500.0,0.00043835,30]
[358435322,1745149556688,-500.0,0.00043835,30]
[358435323,1745149556713,-500.0,0.00043835,30]
[358435324,1745149556738,-500.0,0.00043835,30]
[358435325,1745149556763,-500.0,0.00043835,30]
[358435326,1745149556788,-425.01672544,0.00043835,30]
[358435327,1745149556813,-526.14090583,0.00043835,30]
[358435328,1745149556838,-500.0,0.00043835,30]
[358435329,1745149556865,-527.4539889,0.00043835,30]
[358435330,1745149556889,-500.0,0.00043835,30]
[358435331,1745149556913,-384.68581827,0.00043835,30]
[358435332,1745149556937,-500.0,0.00043835,30]
[358435333,1745149556962,-500.0,0.00043835,30]
[358435334,1745149556986,-500.0,0.00043835,30]
[358435335,1745149557010,-561.37973291,0.00043835,30]
[358435336,1745149557034,-500.0,0.00043835,30]
[358435337,1745149557059,-500.0,0.00043835,30]
[358435338,1745149557083,-500.0,0.00043835,30]
[358435339,1745149557108,-500.0,0.00043835,30]
[358435340,1745149557133,-500.0,0.00043835,30]
[358435341,1745149557159,-500.0,0.00043835,30]
[358435342,1745149557185,-500.0,0.00043835,30]
[358435343,1745149557213,-542.0162036,0.00043835,30]
[358435344,1745149557241,-500.0,0.00043835,30]
[358435345,1745149557267,-551.78784882,0.00043835,30]
[358435346,1745149557292,-500.0,0.00043835,30]